bitfinex-derivatives/quotes_SOLF0:USTF0_20240818
["timestamp","ask_amount","ask_price","bid_price","bid_amount"]
[1723990477448,3.4458,145.07,145.04,10.90035307]
[1723990478141,0.05237883,145.09,145.04,0.04405307]
[1723990478142,3.446,145.06,145.04,0.04405307]
[1723990478349,3.446,145.06,145.04,7.45405307]
[1723990481346,3.4458,145.07,145.04,10.90045307]
[1723990482148,0.05237883,145.09,145.06,7.41]
[1723990482343,4.58,145.08,145.04,0.04405307]
[1723990482945,4.58,145.08,145.07,7.41]
[1723990483944,4.58,145.08,145.06,10.8558]
[1723990484445,8.0255,145.08,145.06,7.41]
[1723990487439,4.58,145.08,145.06,10.8559]
[1723990487644,4.58,145.08,145.04,0.04405307]
[1723990487645,4.58,145.08,145.07,7.41]
[1723990488145,4.58,145.08,145.07,10.8557]
[1723990489349,0.05237883,145.09,145.07,10.8557]
[1723990490947,0.05237883,145.09,145.08,3.4455]
[1723990491253,0.05237883,145.09,145.08,10.8555]
[1723990497150,0.05237883,145.09,145.07,12.2025522]
[1723990497356,0.05237883,145.09,145.07,3.4971522]
[1723990497553,3.49767883,145.09,145.07,3.4971522]
[1723990497757,3.49767883,145.09,145.07,0.0515522]
[1723990498456,3.49767883,145.09,145.07,3.4972522]
[1723990499359,0.05237883,145.09,145.07,0.0515522]
[1723990500060,3.49777883,145.09,145.07,0.0515522]
[1723990500459,0.05237883,145.09,145.07,10.9072522]
[1723990502262,0.05237883,145.09,145.07,0.0515522]
[1723990502263,7.46237883,145.09,145.07,0.0515522]
[1723990502461,7.41,145.09,145.02,7.41]
[1723990502857,7.41,145.09,145.03,7.41]
[1723990503056,3.4459,145.07,145.04,3.4463]
[1723990503256,4.56,145.06,145.03,7.41]
[1723990503454,3.4452,145.1,145.05,7.41]
[1723990503657,4.56,145.09,145.07,7.41]
[1723990504164,4.56,145.13,145.07,7.41]
[1723990504361,4.56,145.13,145.12,7.41]
[1723990504559,3.4434,145.17,145.14,3.444]
[1723990504865,0.04540553,145.17,145.15,7.41]
[1723990505766,3.48880553,145.17,145.15,7.41]
[1723990506563,3.48880553,145.17,145.14,21.99905262]
[1723990507959,3.48880553,145.17,145.14,18.55505262]
[1723990509566,0.04540553,145.17,145.14,18.55505262]
[1723990510064,0.04540553,145.17,145.14,21.99905262]
[1723990511770,3.4436,145.16,145.14,18.55505262]
[1723990512472,3.48890553,145.17,145.14,18.55505262]
[1723990512766,0.04540553,145.17,145.14,18.55505262]
[1723990513762,3.4436,145.16,145.14,18.55505262]
[1723990514871,3.4438,145.15,145.14,18.55505262]
[1723990515865,3.4447,145.12,145.09,18.51]
[1723990516366,3.4447,145.12,145.09,21.9551]
[1723990516970,0.04629235,145.12,145.09,22.00343583]
[1723990519167,3.49089235,145.12,145.09,22.00343583]
[1723990519674,0.04629235,145.12,145.11,18.51]
[1723990520775,4.56,145.16,145.11,21.9548]
[1723990520973,4.56,145.16,145.12,18.51]
[1723990521173,3.4441,145.15,145.12,21.9545]
[1723990521377,2.6191,145.23,145.14,18.51]
[1723990521574,4.56,145.21,145.14,18.51]
[1723990521880,3.4434,145.17,145.16,0.04560749]
[1723990524478,3.4431,145.18,145.16,0.04560749]
[1723990526480,3.48628123,145.19,145.16,0.04560749]
[1723990526683,0.04338123,145.19,145.16,0.04560749]
[1723990526881,3.4433,145.18,145.16,0.04560749]
[1723990529181,3.48638123,145.19,145.16,0.04560749]
[1723990530079,3.48638123,145.19,145.16,3.48920749]
[1723990530280,0.04338123,145.19,145.16,0.04560749]
[1723990530491,0.04338123,145.19,145.17,18.51]
[1723990530983,3.4423,145.22,145.17,18.51]
[1723990531184,3.4423,145.22,145.2,18.51]
[1723990531381,4.56,145.23,145.18,21.953]
[1723990532075,3.49419701,145.22,145.19,0.05235364]
[1723990532276,0.05179701,145.22,145.19,0.05235364]
[1723990532683,3.4426,145.2,145.19,0.05235364]
[1723990534275,0.05179701,145.22,145.19,0.05235364]
[1723990534276,3.4426,145.21,145.19,0.05235364]
[1723990534677,0.05179701,145.22,145.19,0.05235364]
[1723990535478,3.4424,145.21,145.19,0.05235364]
[1723990538793,3.49409701,145.22,145.19,3.49525364]
[1723990541592,3.4424,145.21,145.19,3.49525364]
[1723990542491,3.4424,145.21,145.2,7.4]
[1723990543088,3.49409701,145.22,145.2,7.4]
[1723990544597,0.05179701,145.22,145.21,7.4]
[1723990544790,20.66,145.3,145.21,7.4]
[1723990544791,4.56,145.3,145.21,7.4]
[1723990544994,3.4397,145.33,145.28,7.4]
[1723990545194,4.56,145.38,145.27,29.6]
[1723990545398,4.56,145.38,145.34,7.4]
[1723990545592,4.56,145.38,145.3,3.4403]
[1723990545593,3.4393,145.35,145.3,3.4403]
[1723990545796,3.4393,145.35,145.34,7.4]
[1723990546096,4.56,145.38,145.35,3.439]
[1723990546287,13.4077154,145.48,145.37,7.4]
[1723990546492,4.56,145.46,145.39,18.47]
[1723990546696,4.56,145.46,145.41,18.47]
[1723990546990,0.05286098,145.44,145.41,18.47]
[1723990547588,0.05286098,145.44,145.4,0.05168465]
[1723990547784,3.4373,145.43,145.4,0.05168465]
[1723990547989,0.05286098,145.44,145.4,0.05168465]
[1723990548589,18.52286098,145.44,145.4,0.05168465]
[1723990548895,18.47,145.42,145.32,18.47]
[1723990549099,18.47,145.42,145.33,3.4396]
[1723990549100,3.4387,145.37,145.33,3.4396]
[1723990549490,18.47,145.42,145.33,3.4396]
[1723990549799,3.4385,145.38,145.33,3.4396]
[1723990550000,0.0501336,145.39,145.36,0.04647835]
[1723990550390,3.4388,145.37,145.36,0.04647835]
[1723990550995,3.4398,145.32,145.27,21.0988]
[1723990551190,18.47,145.36,145.27,21.0988]
[1723990551496,24.2881,145.38,145.29,18.47]
[1723990552002,3.4394,145.34,145.32,0.05005767]
[1723990552199,0.05069885,145.35,145.32,0.05005767]
[1723990552500,0.05069885,145.35,145.32,3.48965767]
[1723990552889,0.05069885,145.35,145.32,0.05005767]
[1723990553797,3.35571938,145.47,145.34,18.47]
[1723990553991,4.54,145.44,145.38,18.47]
[1723990554596,3.4375,145.42,145.38,21.9083]
[1723990554792,0.04790641,145.41,145.39,0.04383446]
[1723990556999,3.4379,145.4,145.39,0.04383446]
[1723990558896,0.04790641,145.41,145.39,0.04383446]
[1723990560407,0.04790641,145.41,145.39,18.51383446]
[1723990560605,4.54,145.46,145.39,18.51383446]
[1723990561000,3.437,145.44,145.4,3.4378]
[1723990561203,4.54,145.46,145.4,3.4378]
[1723990561508,3.4369,145.45,145.41,21.9075]
[1723990561698,0.05029216,145.44,145.41,21.9075]
[1723990561902,0.05029216,145.44,145.42,0.04883229]
[1723990562204,3.4372,145.43,145.42,0.04883229]
[1723990563409,0.05029216,145.44,145.42,0.04883229]
[1723990564808,3.48739216,145.44,145.42,0.04883229]
[1723990565315,0.05029216,145.44,145.42,3.48623229]
[1723990565608,0.05029216,145.44,145.42,0.04883229]
[1723990566110,7.9772,145.43,145.42,0.04883229]
[1723990567707,4.54,145.43,145.42,0.04883229]
[1723990568402,7.9772,145.43,145.42,0.04883229]
[1723990568605,4.54,145.43,145.42,0.04883229]
[1723990569905,7.9772,145.43,145.42,0.04883229]
[1723990571310,4.54,145.43,145.42,0.04883229]
[1723990572104,4.54,145.43,145.42,3.48623229]
[1723990572308,4.54,145.43,145.42,0.04883229]
[1723990572711,0.05029216,145.44,145.42,0.04883229]
[1723990573308,0.05029216,145.44,145.43,3.4372]
[1723990574019,0.05029216,145.44,145.43,21.9072]
[1723990576011,27.52,145.5,145.43,18.47]
[1723990576216,4.54,145.49,145.45,18.47]
[1723990576418,4.54,145.49,145.43,18.47]
[1723990576618,4.54,145.49,145.44,3.4368]
[1723990576818,4.54,145.49,145.41,21.0205]
[1723990577015,3.4364,145.47,145.41,21.0205]
[1723990577222,0.04628155,145.46,145.44,3.48745738]
[1723990578223,0.04628155,145.46,145.45,3.4367]
[1723990578819,0.04628155,145.46,145.44,3.48745738]
[1723990579117,0.04628155,145.46,145.44,0.05055738]
[1723990579322,0.04628155,145.46,145.45,3.4367]
[1723990580316,0.04628155,145.46,145.45,21.9067]
[1723990581621,3.4357,145.5,145.47,21.9062]
[1723990582623,3.4357,145.5,145.47,21.95097314]
[1723990582624,3.48547829,145.5,145.47,21.95097314]
[1723990583316,3.48547829,145.5,145.47,18.51477314]
[1723990583526,3.4358,145.49,145.47,0.04477314]
[1723990583717,0.04977829,145.5,145.47,0.04477314]
[1723990583918,3.436,145.48,145.47,0.04477314]
[1723990584815,20.66,145.5,145.32,3.45365456]
[1723990585028,18.47,145.48,145.39,18.47]
[1723990585330,3.4372,145.44,145.4,3.4379]
[1723990585521,4.54,145.45,145.4,3.4379]
[1723990585924,0.04951272,145.44,145.41,0.05105197]
[1723990586124,3.4373,145.43,145.41,0.05105197]
[1723990586619,3.48651272,145.44,145.41,3.48865197]
[1723990586826,3.48651272,145.44,145.41,0.05105197]
[1723990587023,0.04951272,145.44,145.41,0.05105197]
[1723990588926,18.51951272,145.44,145.35,19.7433]
[1723990589127,18.47,145.44,145.35,19.7433]
[1723990589717,3.4382,145.39,145.36,3.4387]
[1723990589917,3.48425529,145.39,145.36,3.49125355]
[1723990590331,3.4384,145.38,145.36,0.05255355]
[1723990590631,0.04605529,145.39,145.36,0.05255355]
[1723990590828,3.4386,145.37,145.36,0.05255355]
[1723990591018,0.04605529,145.39,145.36,0.05255355]
[1723990591224,0.04605529,145.39,145.37,18.47]
[1723990591427,0.04605529,145.39,145.36,0.05255355]
[1723990591925,3.4386,145.37,145.36,0.05255355]
[1723990592318,0.04605529,145.39,145.36,0.05255355]
[1723990592523,3.4385,145.38,145.36,18.52255355]
[1723990594523,3.4386,145.37,145.36,18.52255355]
[1723990594725,3.4386,145.37,145.36,0.05255355]
[1723990596023,3.4386,145.37,145.3,1.2783]
[1723990596024,18.47,145.38,145.3,1.2783]
[1723990596325,19.7711,145.38,145.29,18.47]
[1723990596525,3.4398,145.33,145.29,21.9104]
[1723990596720,4.54,145.32,145.29,21.9104]
[1723990597121,8.02383673,145.32,145.29,3.48874454]
[1723990598025,4.58403673,145.32,145.3,3.4402]
[1723990598425,4.58403673,145.32,145.3,26.5602]
[1723990598827,4.58403673,145.32,145.31,3.44]
[1723990599029,4.58403673,145.32,145.3,23.12]
[1723990599423,4.58403673,145.32,145.3,26.5601]
[1723990603327,4.58403673,145.32,145.3,23.12]
[1723990604031,4.58403673,145.32,145.3,26.5603]
[1723990608740,4.58403673,145.32,145.31,3.44]
[1723990610142,0.04403673,145.32,145.31,3.44]
[1723990610841,1.2624,145.4,145.31,3.44]
[1723990610842,3.39563156,145.55,145.31,27.90541788]
[1723990611144,7.2112,145.48,145.41,23.12]
[1723990612046,0.05179872,145.46,145.43,3.48094561]
[1723990613239,3.48839872,145.46,145.43,0.04374561]
[1723990613640,3.48829872,145.46,145.43,3.48084561]
[1723990614247,0.05179872,145.46,145.43,0.04374561]
[1723990614641,3.4369,145.45,145.43,0.04374561]
[1723990615847,3.437,145.44,145.43,0.04374561]
[1723990616052,3.49015967,145.47,145.37,23.12]
[1723990616249,4.54,145.46,145.37,23.12]
[1723990616450,3.4374,145.43,145.39,3.4381]
[1723990616739,3.4374,145.43,145.37,23.12]
[1723990616740,7.93007178,145.46,145.37,23.12]
[1723990617147,0.0520272,145.43,145.4,0.05140384]
[1723990618757,3.4377,145.41,145.4,0.05140384]
[1723990618955,7.9777,145.41,145.4,0.05140384]
[1723990619155,4.54,145.41,145.4,0.05140384]
[1723990620551,7.9777,145.41,145.4,0.05140384]
[1723990620952,3.4377,145.41,145.4,0.05140384]
[1723990621161,7.9777,145.41,145.4,0.05140384]
[1723990621648,3.4386,145.38,145.35,18.47]
[1723990622053,4.54,145.41,145.35,21.909]
[1723990622251,26.4722,145.41,145.33,18.47]
[1723990622648,26.4722,145.41,145.34,3.4393]
[1723990622649,3.4386,145.38,145.34,3.4393]
[1723990622847,3.48568857,145.38,145.36,0.05088981]
[1723990624661,0.04708857,145.38,145.36,18.52088981]
[1723990625551,19.7422,145.45,145.36,18.52088981]
[1723990625755,19.7422,145.45,145.36,18.47]
[1723990625756,4.54,145.44,145.36,18.47]
[1723990626157,4.54,145.44,145.37,3.4386]
[1723990626461,5.796,145.44,145.37,3.4386]
[1723990626661,3.4378,145.41,145.39,0.04696435]
[1723990627663,3.4379,145.4,145.39,0.04696435]
[1723990628860,3.4387,145.37,145.33,1.3359]
[1723990629258,7.9785,145.38,145.34,3.4391]
[1723990630070,0.04666204,145.37,145.35,0.04645129]
[1723990631072,3.48526204,145.37,145.35,0.04645129]
[1723990635262,3.4389,145.36,145.35,0.04645129]
[1723990637366,3.48536204,145.37,145.35,0.04645129]
[1723990637567,4.54,145.36,145.35,0.04645129]
[1723990637967,7.9789,145.36,145.35,0.04645129]
[1723990638468,3.4389,145.36,145.35,0.04645129]
[1723990639171,4.58666204,145.37,145.35,0.04645129]
[1723990639172,8.02536204,145.37,145.35,0.04645129]
[1723990639361,4.58666204,145.37,145.35,0.04645129]
[1723990639562,0.04666204,145.37,145.35,18.51645129]
[1723990639768,0.04666204,145.37,145.36,3.4389]
[1723990640863,0.04666204,145.37,145.35,21.95545129]
[1723990641974,0.04666204,145.37,145.35,18.51645129]
[1723990641975,3.48536204,145.37,145.35,18.51645129]
[1723990642270,0.04666204,145.37,145.35,18.51645129]
[1723990642473,3.4389,145.36,145.35,18.51645129]
[1723990642869,0.04666204,145.37,145.35,18.51645129]
[1723990643773,3.48536204,145.37,145.35,18.51645129]
[1723990644071,0.04666204,145.37,145.35,18.51645129]
[1723990644371,0.04666204,145.37,145.35,21.95555129]
[1723990647974,0.04666204,145.37,145.35,18.51645129]
[1723990649476,3.48536204,145.37,145.35,18.51645129]
[1723990650078,0.04666204,145.37,145.35,18.51645129]
[1723990651887,0.04666204,145.37,145.35,21.95545129]
[1723990652981,48.16038648,145.54,145.36,18.47]
[1723990653176,4.56,145.43,145.38,18.47]
[1723990653574,3.4375,145.42,145.39,3.438]
[1723990654078,3.48304572,145.42,145.39,3.48172466]
[1723990654278,0.04554572,145.42,145.4,3.4379]
[1723990656678,3.48294572,145.42,145.39,0.04372466]
[1723990656875,0.04554572,145.42,145.39,0.04372466]
[1723990657785,3.4377,145.41,145.39,0.04372466]
[1723990658884,3.48304572,145.42,145.39,3.48172466]
[1723990659482,0.04554572,145.42,145.4,3.4379]
[1723990659879,0.04554572,145.42,145.4,18.47]
[1723990660078,27.5,145.46,145.4,18.47]
[1723990660382,4.56,145.47,145.44,18.47]
[1723990660582,4.56,145.49,145.44,18.47]
[1723990661387,0.05274217,145.48,145.45,0.05048857]
[1723990661983,3.4363,145.47,145.45,0.05048857]
[1723990662185,0.05274217,145.48,145.45,0.05048857]
[1723990662486,4.56,145.49,145.45,0.05048857]
[1723990662487,4.56,145.49,145.46,18.47]
[1723990662682,10.2993,145.61,145.48,18.47]
[1723990662683,4.56,145.53,145.48,18.47]
[1723990662989,4.56,145.54,145.47,18.47]
[1723990663388,3.4355,145.51,145.47,21.9062]
[1723990663590,0.04661322,145.5,145.48,0.04402254]
[1723990664583,3.48231322,145.5,145.48,0.04402254]
[1723990670290,0.04661322,145.5,145.48,0.04402254]
[1723990670893,0.04661322,145.5,145.48,3.48002254]
[1723990671889,0.04661322,145.5,145.48,0.04402254]
[1723990672088,3.48221322,145.5,145.48,0.04402254]
[1723990672794,0.04661322,145.5,145.48,0.04402254]
[1723990672988,0.04661322,145.5,145.49,18.47]
[1723990674096,0.04661322,145.5,145.49,21.9058]
[1723990674796,0.04661322,145.5,145.49,18.47]
[1723990675695,3.4352,145.52,145.49,18.47]
[1723990675995,3.4349,145.53,145.49,21.9056]
[1723990676399,3.4349,145.53,145.51,18.47]
[1723990677000,3.48485027,145.53,145.51,18.47]
[1723990677999,3.48485027,145.53,145.5,3.4355]
[1723990678390,3.48485027,145.53,145.49,18.47]
[1723990678591,3.4351,145.52,145.49,21.9056]
[1723990678792,0.04995027,145.53,145.49,21.9056]
[1723990679388,3.4352,145.52,145.49,18.47]
[1723990679894,0.04995027,145.53,145.49,18.47]
[1723990680200,3.48495027,145.53,145.49,18.47]
[1723990680793,3.48495027,145.53,145.5,3.4355]
[1723990682507,3.48495027,145.53,145.5,10.8255]
[1723990683404,0.04995027,145.53,145.52,7.39]
[1723990684594,3.48475027,145.53,145.52,7.39]
[1723990684904,0.04995027,145.53,145.52,7.39]
[1723990685407,0.04995027,145.53,145.52,10.8251]
[1723990685802,0.04995027,145.53,145.52,7.39]
[1723990686408,7.9741,145.57,145.53,7.39]
[1723990686608,7.9741,145.57,145.56,7.39]
[1723990687499,3.4341,145.57,145.56,7.39]
[1723990688705,3.4341,145.57,145.55,0.05098436]
[1723990688706,3.4341,145.57,145.55,7.44098436]
[1723990688905,3.4341,145.56,145.55,0.05098436]
[1723990690913,3.4341,145.56,145.55,7.44098436]
[1723990691108,3.4341,145.57,145.55,7.44098436]
[1723990692119,3.4341,145.56,145.55,7.44098436]
[1723990692316,3.4341,145.56,145.55,0.05098436]
[1723990696117,1.38819472,145.58,145.47,2.7091]
[1723990696118,3.4346,145.54,145.47,2.7091]
[1723990696324,3.4346,145.54,145.52,7.39]
[1723990697324,3.48705756,145.54,145.52,7.44035728]
[1723990697531,0.05245756,145.54,145.52,10.87525728]
[1723990697731,0.05245756,145.54,145.52,7.44035728]
[1723990698827,3.48715756,145.54,145.52,7.44035728]
[1723990700732,3.48715756,145.54,145.52,0.05035728]
[1723990700733,3.4348,145.53,145.52,0.05035728]
[1723990701725,3.4361,145.48,145.46,1.2826]
[1723990701930,4.54,145.5,145.46,7.39]
[1723990702126,4.54,145.5,145.47,7.39]
[1723990702528,4.54,145.5,145.49,7.39]
[1723990702929,0.04914581,145.51,145.49,7.39]
[1723990703135,4.54,145.52,145.5,7.39]
[1723990703333,0.05028243,145.51,145.5,7.39]
[1723990704237,0.05028243,145.51,145.5,10.8256]
[1723990705937,0.05028243,145.51,145.5,7.39]
[1723990706134,0.05028243,145.51,145.49,0.04611004]
[1723990706436,7.9756,145.5,145.49,0.04611004]
[1723990708144,4.54,145.5,145.49,7.43611004]
[1723990709241,4.54,145.5,145.49,10.87191004]
[1723990709440,0.05028243,145.51,145.49,10.87191004]
[1723990709640,0.05028243,145.51,145.49,0.04611004]
[1723990709843,3.4356,145.5,145.49,0.04611004]
[1723990710439,7.44028243,145.51,145.35,3.19389548]
[1723990710635,1.3074,145.5,145.42,7.39]
[1723990710840,1.3074,145.5,145.44,7.39]
[1723990711041,1.3074,145.5,145.45,7.39]
[1723990711236,1.3074,145.5,145.47,7.39]
[1723990711644,1.35566253,145.5,145.47,7.43340359]
[1723990711848,3.4359,145.49,145.47,7.43340359]
[1723990713842,3.48386253,145.5,145.47,7.43340359]
[1723990714043,3.48386253,145.5,145.47,10.86960359]
[1723990714440,3.4358,145.49,145.47,7.43340359]
[1723990719144,3.436,145.48,145.47,0.04340359]
[1723990719644,7.976,145.48,145.47,0.04340359]
[1723990722547,7.976,145.48,145.41,7.39]
[1723990722548,3.437,145.44,145.41,7.39]
[1723990722745,3.437,145.44,145.41,10.8275]
[1723990723247,11.93,145.48,145.41,7.39]
[1723990723453,11.93,145.48,145.43,0.04583643]
[1723990723647,0.05205932,145.46,145.43,0.04583643]
[1723990724349,0.05205932,145.46,145.43,7.43583643]
[1723990724747,3.48875932,145.46,145.43,10.87293643]
[1723990724943,8.02875932,145.46,145.44,7.39]
[1723990725759,3.4367,145.45,145.44,7.39]
[1723990726053,3.4367,145.45,145.43,0.04583643]
[1723990726650,3.437,145.44,145.43,0.04583643]
[1723990729551,11.98205932,145.46,145.39,8.7169]
[1723990729747,11.93,145.46,145.39,8.7169]
[1723990729948,11.93,145.46,145.39,12.155]
[1723990730654,0.04944904,145.44,145.41,0.05238111]
[1723990730858,3.4376,145.42,145.41,0.05238111]
[1723990733157,3.4373,145.43,145.41,0.05238111]
[1723990734560,0.04944904,145.44,145.42,7.39]
[1723990734758,4.58944904,145.44,145.42,7.39]
[1723990735457,8.02644904,145.44,145.42,7.39]
[1723990738058,4.58944904,145.44,145.41,0.05238111]
[1723990738463,3.4372,145.43,145.41,0.05238111]
[1723990738661,11.97944904,145.44,145.41,0.05238111]
[1723990738857,15.38200307,145.44,145.41,0.05238111]
[1723990739761,3.4374,145.42,145.41,0.05238111]
[1723990741360,3.4373,145.43,145.41,0.05238111]
[1723990742663,3.4374,145.42,145.41,0.05238111]
[1723990744273,3.4373,145.43,145.41,0.05238111]
[1723990744769,4.58944904,145.44,145.41,0.05238111]
[1723990744968,3.4373,145.43,145.41,0.05238111]
[1723990746366,3.4374,145.42,145.41,0.05238111]
[1723990746560,4.58944904,145.44,145.41,0.05238111]
[1723990747273,3.4374,145.42,145.41,0.05238111]
[1723990757076,10.9128429,145.42,145.34,7.39]
[1723990757276,7.39,145.42,145.34,7.39]
[1723990757684,3.4385,145.38,145.35,3.439]
[1723990757878,7.9785,145.38,145.35,3.439]
[1723990758079,8.03026294,145.38,145.35,3.48413843]
[1723990759187,20.62,145.51,145.37,7.39]
[1723990759489,7.39,145.46,145.4,7.39]
[1723990759681,3.4376,145.42,145.4,7.39]
[1723990760079,7.9776,145.42,145.4,7.39]
[1723990760285,8.03057016,145.42,145.4,7.4358904]
[1723990761381,0.05297016,145.42,145.4,7.4358904]
[1723990761582,4.59297016,145.42,145.4,7.4358904]
[1723990762881,8.03047016,145.42,145.4,7.4358904]
[1723990763287,0.05297016,145.42,145.4,10.8737904]
[1723990763586,4.59297016,145.42,145.4,10.8737904]
[1723990763885,0.05297016,145.42,145.41,10.8277]
[1723990764091,4.54,145.47,145.41,7.39]
[1723990764286,4.54,145.47,145.45,7.39]
[1723990764786,7.9765,145.47,145.45,7.39]
[1723990764979,7.9765,145.47,145.45,0.04852025]
[1723990764980,4.59089472,145.47,145.45,0.04852025]
[1723990765386,3.4367,145.46,145.45,0.04852025]
[1723990773095,8.02719472,145.47,145.45,0.04852025]
[1723990773290,0.05089472,145.47,145.46,7.39]
[1723990773597,7.9757,145.5,145.46,7.39]
[1723990773899,7.9757,145.5,145.48,7.39]
[1723990774493,8.02378046,145.5,145.48,7.39]
[1723990778001,8.02378046,145.5,145.46,7.39]
[1723990778790,4.58808046,145.5,145.47,3.4362]
[1723990779293,8.02378046,145.5,145.46,3.4364]
[1723990779492,8.02378046,145.5,145.46,10.8264]
[1723990780697,8.02378046,145.5,145.47,3.4363]
[1723990781699,8.02378046,145.5,145.47,10.8263]
[1723990782100,3.4359,145.49,145.47,7.39]
[1723990782400,4.58808046,145.5,145.46,10.8263]
[1723990783901,8.02378046,145.5,145.46,10.8263]
[1723990786103,4.58808046,145.5,145.45,1.28502025]
[1723990786406,4.58808046,145.5,145.46,7.39]
[1723990786799,3.4358,145.49,145.46,7.39]
[1723990787103,7.39,145.47,145.33,3.19389548]
[1723990787311,7.39,145.47,145.39,7.39]
[1723990787613,7.39,145.47,145.41,3.4377]
[1723990788210,0.05107403,145.45,145.43,0.04805004]
[1723990788512,4.54,145.44,145.43,0.04805004]
[1723990790910,4.54,145.44,145.43,3.48525004]
[1723990791210,0.05107403,145.45,145.43,10.87525004]
[1723990793109,0.05107403,145.45,145.44,3.437]
[1723990793512,0.05107403,145.45,145.43,7.43805004]
[1723990794017,0.05107403,145.45,145.43,10.87525004]
[1723990794317,0.05107403,145.45,145.44,7.39]
[1723990794618,0.05107403,145.45,145.43,0.04805004]
[1723990795118,0.05107403,145.45,145.43,10.87515004]
[1723990795616,0.05107403,145.45,145.43,0.04805004]
[1723990796207,3.437,145.44,145.43,0.04805004]
[1723990796515,3.437,145.44,145.36,1.3522]
[1723990796516,7.39,145.44,145.38,7.39]
[1723990796715,4.54,145.43,145.38,7.39]
[1723990796915,4.54,145.43,145.36,1.3522]
[1723990797218,4.54,145.43,145.38,7.39]
[1723990797618,0.04871138,145.42,145.39,0.05234889]
[1723990798217,3.4378,145.41,145.39,0.05234889]
[1723990798522,0.04871138,145.42,145.39,7.44234889]
[1723990798820,0.04871138,145.42,145.4,3.4379]
[1723990799819,0.04871138,145.42,145.39,10.88044889]
[1723990800010,0.04871138,145.42,145.4,7.39]
[1723990800422,2.6135,145.51,145.4,7.39]
[1723990800621,2.6135,145.51,145.39,0.05234889]
[1723990800622,4.54,145.47,145.43,7.39]
[1723990800923,4.54,145.48,145.45,7.39]
[1723990801513,3.4363,145.47,145.45,7.44237349]
[1723990801919,4.58464229,145.48,145.45,0.05237349]
[1723990802121,3.4365,145.47,145.45,0.05237349]
[1723990804017,8.02084229,145.48,145.45,3.48907349]
[1723990804221,4.58464229,145.48,145.45,21.94907349]
[1723990804417,0.04464229,145.48,145.47,18.46]
[1723990804616,0.04464229,145.48,145.47,21.8963]
[1723990806625,4.54,145.51,145.5,3.4356]
[1723990806826,4.54,145.51,145.47,18.46]
[1723990807727,0.0463427,145.5,145.48,3.48857282]
[1723990811734,0.0463427,145.5,145.48,0.05277282]
[1723990812232,3.4358,145.49,145.48,0.05277282]
[1723990820247,4.54,145.57,145.48,18.51277282]
[1723990820439,4.54,145.57,145.51,18.46]
[1723990820640,3.435,145.53,145.51,18.46]
[1723990820940,4.54,145.57,145.49,18.46]
[1723990821145,0.04495513,145.54,145.52,0.04952487]
[1723990821549,0.04495513,145.54,145.45,18.46]
[1723990821747,3.436,145.49,145.45,21.8967]
[1723990822447,3.436,145.49,145.46,3.4365]
[1723990822652,3.48211312,145.49,145.46,3.48604669]
[1723990823745,0.04611312,145.49,145.47,3.4362]
[1723990824149,0.04611312,145.49,145.46,18.50954669]
[1723990824343,0.04611312,145.49,145.48,3.436]
[1723990824544,4.54,145.5,145.48,10.826]
[1723990825751,4.58503471,145.5,145.48,10.826]
[1723990826350,0.04503471,145.5,145.48,10.826]
[1723990826546,0.04503471,145.5,145.48,21.906]
[1723990827144,3.48063471,145.5,145.48,18.47]
[1723990827342,3.48063471,145.5,145.47,3.4361]
[1723990827747,0.04503471,145.5,145.46,18.51954669]
[1723990828049,0.04503471,145.5,145.48,18.47]
[1723990828449,0.04503471,145.5,145.49,3.4358]
[1723990830952,0.04503471,145.5,145.48,18.47]
[1723990831158,0.04503471,145.5,145.48,21.9059]
[1723990833959,0.04503471,145.5,145.49,3.4358]
[1723990835158,0.04503471,145.5,145.48,21.9059]
[1723990835751,3.8933,145.59,145.48,18.47]